[Event "Early-Titled-Tuesday-Blitz-June-18-2024"]
[Site "Chess.com"]
[Date "2024.06.18"]
[Round "8"]
[White "glucolisis04"]
[Black "elamier"]
[Result "0-1"]
[WhiteElo "2283"]
[BlackElo "2454"]
[TimeControl "180+1"]
[EndTime "9:28:09 PDT"]
[Termination "elamier won by resignation"]

1. d4 {[%clk 0:03:00.9]} 1... Nf6 {[%clk 0:02:48.3]} 2. c4 {[%clk 0:03:01]} 2...
e6 {[%clk 0:02:48.2]} 3. Nc3 {[%clk 0:03:01.3]} 3... Bb4 {[%clk 0:02:48.4]} 4.
e3 {[%clk 0:03:01.2]} 4... O-O {[%clk 0:02:47.6]} 5. Ne2 {[%clk 0:02:58.9]} 5...
d5 {[%clk 0:02:41.5]} 6. a3 {[%clk 0:02:57.2]} 6... Be7 {[%clk 0:02:41.5]} 7.
cxd5 {[%clk 0:02:53.3]} 7... exd5 {[%clk 0:02:39.8]} 8. Nf4 {[%clk 0:02:52.8]}
8... c6 {[%clk 0:02:39.6]} 9. Bd3 {[%clk 0:02:49]} 9... Re8 {[%clk 0:02:37.7]}
10. O-O {[%clk 0:02:49.3]} 10... Na6 {[%clk 0:02:38.3]} 11. f3 {[%clk
0:02:44.7]} 11... Nc7 {[%clk 0:02:37.1]} 12. Qc2 {[%clk 0:02:44.4]} 12... Ne6
{[%clk 0:02:35.1]} 13. Nxe6 {[%clk 0:02:39.4]} 13... Bxe6 {[%clk 0:02:35]} 14.
b4 {[%clk 0:02:29]} 14... a5 {[%clk 0:02:32.1]} 15. b5 {[%clk 0:02:27.8]} 15...
c5 {[%clk 0:02:31.7]} 16. dxc5 {[%clk 0:02:21.3]} 16... Bxc5 {[%clk 0:02:32.6]}
17. Kh1 {[%clk 0:02:02.1]} 17... Rc8 {[%clk 0:02:31.6]} 18. Bb2 {[%clk
0:01:52.8]} 18... Bxe3 {[%clk 0:02:11.4]} 19. Qe2 {[%clk 0:01:49.3]} 19... d4
{[%clk 0:02:07.7]} 20. Ne4 {[%clk 0:01:46.2]} 20... Nxe4 {[%clk 0:02:06.4]} 21.
Bxe4 {[%clk 0:01:40.4]} 21... Bc4 {[%clk 0:01:58.8]} 22. Bd3 {[%clk 0:01:36.8]}
22... Bc1 {[%clk 0:01:55.4]} 23. Qf2 {[%clk 0:00:31.2]} 23... Bxb2 {[%clk
0:01:42.8]} 24. Bxc4 {[%clk 0:00:27]} 24... Bxa1 {[%clk 0:01:41.2]} 0-1

[Event "Early-Titled-Tuesday-Blitz-June-18-2024"]
[Site "Chess.com"]
[Date "2024.06.18"]
[Round "8"]
[White "Angry_Twin"]
[Black "AnishOnYoutube"]
[Result "0-1"]
[WhiteElo "2923"]
[BlackElo "3077"]
[TimeControl "180+1"]
[EndTime "9:28:10 PDT"]
[Termination "AnishOnYoutube won by resignation"]

1. e4 {[%clk 0:03:00.9]} 1... c5 {[%clk 0:02:59.4]} 2. Nf3 {[%clk 0:03:00.8]}
2... d6 {[%clk 0:02:59.9]} 3. Bb5+ {[%clk 0:03:00.8]} 3... Nd7 {[%clk
0:02:59.9]} 4. O-O {[%clk 0:03:00.4]} 4... a6 {[%clk 0:03:00.3]} 5. Bd3 {[%clk
0:03:00]} 5... Ngf6 {[%clk 0:03:00.8]} 6. Re1 {[%clk 0:02:58.5]} 6... Qc7 {[%clk
0:03:01.2]} 7. a4 {[%clk 0:02:50.3]} 7... b6 {[%clk 0:02:47.3]} 8. Na3 {[%clk
0:02:46.4]} 8... Bb7 {[%clk 0:02:46.1]} 9. c3 {[%clk 0:02:45.1]} 9... e6 {[%clk
0:02:46.5]} 10. Qe2 {[%clk 0:02:43.1]} 10... g5 {[%clk 0:02:33.7]} 11. Nxg5
{[%clk 0:02:24.1]} 11... Rg8 {[%clk 0:02:33.6]} 12. f4 {[%clk 0:02:11.2]} 12...
h6 {[%clk 0:02:28.5]} 13. Nh3 {[%clk 0:02:00.8]} 13... d5 {[%clk 0:02:24.2]} 14.
e5 {[%clk 0:01:38.2]} 14... c4 {[%clk 0:02:09.7]} 15. exf6 {[%clk 0:00:40]}
15... cxd3 {[%clk 0:02:07.9]} 16. Qxd3 {[%clk 0:00:40.5]} 16... d4 {[%clk
0:01:56.8]} 17. g3 {[%clk 0:00:40]} 17... Qc6 {[%clk 0:01:53.9]} 18. Re2 {[%clk
0:00:04.9]} 18... Qh1+ {[%clk 0:01:52.7]} 19. Kf2 {[%clk 0:00:05.4]} 19... Qxh2+
{[%clk 0:01:48.6]} 20. Ke1 {[%clk 0:00:04.8]} 20... Qh1+ {[%clk 0:01:48.8]} 21.
Kf2 {[%clk 0:00:04.7]} 21... Qxh3 {[%clk 0:01:47.7]} 0-1

[Event "Early-Titled-Tuesday-Blitz-June-18-2024"]
[Site "Chess.com"]
[Date "2024.06.18"]
[Round "8"]
[White "Flawless_Fighter"]
[Black "jcibarra"]
[Result "1/2-1/2"]
[WhiteElo "2820"]
[BlackElo "3006"]
[TimeControl "180+1"]
[EndTime "9:28:19 PDT"]
[Termination "Game drawn by repetition"]

1. e4 {[%clk 0:03:00.9]} 1... c5 {[%clk 0:02:59.8]} 2. Nf3 {[%clk 0:03:00.4]}
2... Nc6 {[%clk 0:02:59.5]} 3. Bb5 {[%clk 0:02:59.5]} 3... e6 {[%clk 0:03:00.2]}
4. O-O {[%clk 0:02:59.1]} 4... Nd4 {[%clk 0:03:00.3]} 5. Nxd4 {[%clk 0:02:58.5]}
5... cxd4 {[%clk 0:03:01.2]} 6. c3 {[%clk 0:02:56.9]} 6... a6 {[%clk 0:03:01.8]}
7. Be2 {[%clk 0:02:51.8]} 7... Bc5 {[%clk 0:03:01.9]} 8. b4 {[%clk 0:02:49.6]}
8... Ba7 {[%clk 0:03:01.6]} 9. Bb2 {[%clk 0:02:50.2]} 9... Ne7 {[%clk
0:03:01.1]} 10. cxd4 {[%clk 0:02:43.1]} 10... d5 {[%clk 0:03:00.7]} 11. d3
{[%clk 0:02:32.1]} 11... Nc6 {[%clk 0:02:57.5]} 12. a3 {[%clk 0:02:27.1]} 12...
O-O {[%clk 0:02:55]} 13. Nd2 {[%clk 0:02:27.5]} 13... Bxd4 {[%clk 0:02:47.9]}
14. Bxd4 {[%clk 0:02:27.2]} 14... Nxd4 {[%clk 0:02:48.8]} 15. Nb3 {[%clk
0:02:25.1]} 15... Qf6 {[%clk 0:02:45.5]} 16. f4 {[%clk 0:02:12.5]} 16... Bd7
{[%clk 0:02:18.4]} 17. e5 {[%clk 0:02:09.3]} 17... Qd8 {[%clk 0:02:14.4]} 18.
Nxd4 {[%clk 0:01:54.5]} 18... Qb6 {[%clk 0:02:14.1]} 19. Qe1 {[%clk 0:01:55.2]}
19... Qxd4+ {[%clk 0:02:13.3]} 20. Qf2 {[%clk 0:01:55.9]} 20... Qxf2+ {[%clk
0:01:49.3]} 21. Kxf2 {[%clk 0:01:56.8]} 21... Rfc8 {[%clk 0:01:46.2]} 22. Rfc1
{[%clk 0:01:56.7]} 22... a5 {[%clk 0:01:20.8]} 23. bxa5 {[%clk 0:01:53.2]} 23...
Rxc1 {[%clk 0:01:02.1]} 24. Rxc1 {[%clk 0:01:52.7]} 24... Rxa5 {[%clk
0:01:02.8]} 25. Rc7 {[%clk 0:01:48.9]} 25... Be8 {[%clk 0:01:02.7]} 26. d4
{[%clk 0:01:27.4]} 26... Kf8 {[%clk 0:00:49.7]} 27. Rxb7 {[%clk 0:01:24.8]}
27... Rxa3 {[%clk 0:00:48]} 28. Rb8 {[%clk 0:01:25]} 28... Ke7 {[%clk
0:00:48.1]} 29. Rb7+ {[%clk 0:01:23.4]} 29... Kf8 {[%clk 0:00:47.7]} 30. Rb8
{[%clk 0:01:22.4]} 30... Ke7 {[%clk 0:00:44.6]} 31. Rb7+ {[%clk 0:01:22.7]}
31... Kf8 {[%clk 0:00:43.8]} 1/2-1/2

[Event "Early-Titled-Tuesday-Blitz-June-18-2024"]
[Site "Chess.com"]
[Date "2024.06.18"]
[Round "8"]
[White "Rhinos1"]
[Black "giovannibrandao7"]
[Result "1-0"]
[WhiteElo "2073"]
[BlackElo "2264"]
[TimeControl "180+1"]
[EndTime "9:28:19 PDT"]
[Termination "Rhinos1 won by resignation"]

1. e4 {[%clk 0:03:00.9]} 1... c5 {[%clk 0:02:59.2]} 2. d4 {[%clk 0:03:00.4]}
2... cxd4 {[%clk 0:03:00.1]} 3. c3 {[%clk 0:02:59.5]} 3... dxc3 {[%clk
0:02:59.7]} 4. Nxc3 {[%clk 0:02:59.7]} 4... Nc6 {[%clk 0:03:00.1]} 5. Nf3 {[%clk
0:02:59.8]} 5... Nf6 {[%clk 0:02:57.6]} 6. Bc4 {[%clk 0:02:59.6]} 6... e6 {[%clk
0:02:57.5]} 7. O-O {[%clk 0:02:58.9]} 7... Be7 {[%clk 0:02:55]} 8. Qe2 {[%clk
0:02:57.9]} 8... O-O {[%clk 0:02:53.7]} 9. Rd1 {[%clk 0:02:57.8]} 9... Qc7
{[%clk 0:02:52.2]} 10. Bg5 {[%clk 0:02:52.5]} 10... a6 {[%clk 0:02:43.3]} 11.
Rac1 {[%clk 0:02:50.1]} 11... b5 {[%clk 0:02:41.7]} 12. Bb3 {[%clk 0:02:48.9]}
12... Bb7 {[%clk 0:02:41.4]} 13. Nd5 {[%clk 0:02:44]} 13... exd5 {[%clk
0:02:24.2]} 14. exd5 {[%clk 0:02:44.9]} 14... Rae8 {[%clk 0:02:20.5]} 15. dxc6
{[%clk 0:02:39.6]} 15... dxc6 {[%clk 0:02:21.2]} 16. Ne5 {[%clk 0:02:22.1]}
16... Bd6 {[%clk 0:02:10.1]} 17. Bxf6 {[%clk 0:01:46.8]} 17... Bxe5 {[%clk
0:02:08.9]} 18. Bxe5 {[%clk 0:01:42.4]} 18... Qxe5 {[%clk 0:02:08.1]} 19. Qg4
{[%clk 0:01:37.4]} 19... Qxb2 {[%clk 0:02:01.7]} 20. Qd7 {[%clk 0:01:33.1]}
20... Bc8 {[%clk 0:01:52.8]} 21. Qxc6 {[%clk 0:01:24.1]} 21... Be6 {[%clk
0:01:44]} 22. Re1 {[%clk 0:01:05.6]} 22... Bxb3 {[%clk 0:01:40.3]} 23. Rxe8
{[%clk 0:01:02.8]} 23... Bc4 {[%clk 0:01:33.5]} 24. Rxf8+ {[%clk 0:01:00.1]}
24... Kxf8 {[%clk 0:01:33.7]} 25. Qd6+ {[%clk 0:01:00.3]} 25... Ke8 {[%clk
0:01:30.9]} 26. Re1+ {[%clk 0:00:59.4]} 26... Be6 {[%clk 0:01:31.5]} 27. Rd1
{[%clk 0:00:47.7]} 27... Qf6 {[%clk 0:01:20.8]} 28. Qb8+ {[%clk 0:00:47]} 1-0

[Event "Early-Titled-Tuesday-Blitz-June-18-2024"]
[Site "Chess.com"]
[Date "2024.06.18"]
[Round "8"]
[White "Goryachkina"]
[Black "HajiyevKanan"]
[Result "1/2-1/2"]
[WhiteElo "2672"]
[BlackElo "2538"]
[TimeControl "180+1"]
[EndTime "9:28:27 PDT"]
[Termination "Game drawn by repetition"]

1. e4 {[%clk 0:03:00]} 1... c6 {[%clk 0:02:59]} 2. d4 {[%clk 0:02:59.7]} 2... d5
{[%clk 0:02:59.9]} 3. e5 {[%clk 0:03:00]} 3... a6 {[%clk 0:03:00.7]} 4. h3
{[%clk 0:02:54.8]} 4... c5 {[%clk 0:03:00.2]} 5. Nf3 {[%clk 0:02:54.3]} 5...
cxd4 {[%clk 0:02:56]} 6. Qxd4 {[%clk 0:02:53.9]} 6... Nc6 {[%clk 0:02:56.9]} 7.
Qf4 {[%clk 0:02:53.2]} 7... g6 {[%clk 0:02:55.2]} 8. Qh4 {[%clk 0:02:35.4]} 8...
Bg7 {[%clk 0:02:47.4]} 9. Bf4 {[%clk 0:02:26.2]} 9... Qb6 {[%clk 0:02:40.6]} 10.
Nbd2 {[%clk 0:01:55]} 10... Qxb2 {[%clk 0:02:23.6]} 11. Rb1 {[%clk 0:01:54.9]}
11... Qxc2 {[%clk 0:02:21.2]} 12. Be2 {[%clk 0:01:54.6]} 12... h6 {[%clk
0:02:06.2]} 13. O-O {[%clk 0:01:44.2]} 13... g5 {[%clk 0:02:05]} 14. Qg3 {[%clk
0:01:44]} 14... gxf4 {[%clk 0:01:52.9]} 15. Qxg7 {[%clk 0:01:41.7]} 15... Qh7
{[%clk 0:01:53.2]} 16. Qxh7 {[%clk 0:01:33.4]} 16... Rxh7 {[%clk 0:01:54.1]} 17.
Nb3 {[%clk 0:01:33.4]} 17... Rg7 {[%clk 0:01:53.2]} 18. Kh2 {[%clk 0:01:31.4]}
18... Bf5 {[%clk 0:01:23.1]} 19. Rb2 {[%clk 0:01:30.7]} 19... e6 {[%clk
0:00:51.2]} 20. Nc5 {[%clk 0:01:16.8]} 20... b5 {[%clk 0:00:48.3]} 21. Rc1
{[%clk 0:01:08]} 21... Nge7 {[%clk 0:00:46.1]} 22. Nb7 {[%clk 0:01:06.5]} 22...
Kd7 {[%clk 0:00:39.1]} 23. Nc5+ {[%clk 0:01:05.7]} 23... Ke8 {[%clk 0:00:38.1]}
24. Nb7 {[%clk 0:01:05.6]} 24... Kd7 {[%clk 0:00:38.6]} 25. Nc5+ {[%clk
0:01:05.6]} 25... Ke8 {[%clk 0:00:39.2]} 26. Nb7 {[%clk 0:01:05.8]} 26... Kd7
{[%clk 0:00:39.8]} 1/2-1/2

[Event "Early-Titled-Tuesday-Blitz-June-18-2024"]
[Site "Chess.com"]
[Date "2024.06.18"]
[Round "8"]
[White "chess123456s"]
[Black "Heliosis11"]
[Result "0-1"]
[WhiteElo "2601"]
[BlackElo "2469"]
[TimeControl "180+1"]
[EndTime "9:28:29 PDT"]
[Termination "Heliosis11 won by checkmate"]

1. d4 {[%clk 0:03:00.7]} 1... Nf6 {[%clk 0:02:56.6]} 2. Nc3 {[%clk 0:03:01.2]}
2... d5 {[%clk 0:02:55]} 3. Bf4 {[%clk 0:03:01.7]} 3... Bf5 {[%clk 0:02:53]} 4.
e3 {[%clk 0:03:02.1]} 4... e6 {[%clk 0:02:51.4]} 5. Nf3 {[%clk 0:03:02.7]} 5...
c6 {[%clk 0:02:51.4]} 6. Ne5 {[%clk 0:03:02.4]} 6... Nbd7 {[%clk 0:02:50.7]} 7.
g4 {[%clk 0:03:02.3]} 7... Be4 {[%clk 0:02:40.8]} 8. f3 {[%clk 0:03:02.3]} 8...
Bg6 {[%clk 0:02:39]} 9. h4 {[%clk 0:03:02.2]} 9... h5 {[%clk 0:02:29.7]} 10.
Nxg6 {[%clk 0:03:01.3]} 10... fxg6 {[%clk 0:02:30.6]} 11. g5 {[%clk 0:03:01.7]}
11... Ng8 {[%clk 0:02:30.4]} 12. Bd3 {[%clk 0:02:58.8]} 12... Ne7 {[%clk
0:02:27.9]} 13. Bd6 {[%clk 0:02:58.2]} 13... Nf5 {[%clk 0:02:27.7]} 14. Bxf5
{[%clk 0:02:52.6]} 14... gxf5 {[%clk 0:02:25.1]} 15. Bf4 {[%clk 0:02:51.9]}
15... g6 {[%clk 0:02:25.2]} 16. Qe2 {[%clk 0:02:48.9]} 16... Bg7 {[%clk
0:02:25.3]} 17. O-O-O {[%clk 0:02:49.1]} 17... Qe7 {[%clk 0:02:24.5]} 18. e4
{[%clk 0:02:48.8]} 18... fxe4 {[%clk 0:02:21.5]} 19. fxe4 {[%clk 0:02:49]} 19...
Rf8 {[%clk 0:02:21.7]} 20. Bg3 {[%clk 0:02:46.7]} 20... Rf7 {[%clk 0:01:50.4]}
21. Rhe1 {[%clk 0:02:40.9]} 21... Nb6 {[%clk 0:01:38.7]} 22. exd5 {[%clk
0:02:33.4]} 22... cxd5 {[%clk 0:01:37.1]} 23. Qb5+ {[%clk 0:02:29.8]} 23... Kf8
{[%clk 0:01:35.4]} 24. Qc5 {[%clk 0:02:18.2]} 24... Kg8 {[%clk 0:01:28.7]} 25.
Nb5 {[%clk 0:02:07.6]} 25... Qxc5 {[%clk 0:01:25.8]} 26. dxc5 {[%clk 0:02:07.7]}
26... Nc4 {[%clk 0:01:26.1]} 27. c3 {[%clk 0:02:06.2]} 27... Rf3 {[%clk
0:01:23.3]} 28. Bd6 {[%clk 0:02:00.5]} 28... Rf2 {[%clk 0:01:14.9]} 29. b3
{[%clk 0:01:44.4]} 29... Na5 {[%clk 0:01:12.7]} 30. Kb1 {[%clk 0:01:37.3]} 30...
a6 {[%clk 0:01:07.3]} 31. Nc7 {[%clk 0:01:36.4]} 31... Rc8 {[%clk 0:01:07.8]}
32. Rxe6 {[%clk 0:01:31.4]} 32... Bxc3 {[%clk 0:01:02.5]} 33. Nxd5 {[%clk
0:01:24.5]} 33... Rb2+ {[%clk 0:00:58.5]} 34. Kc1 {[%clk 0:01:22.4]} 34... Bg7
{[%clk 0:00:58.8]} 35. Ne7+ {[%clk 0:01:21.7]} 35... Kh7 {[%clk 0:00:58.7]} 36.
Nxc8 {[%clk 0:01:21.4]} 36... Rxa2 {[%clk 0:00:59.3]} 37. Re7 {[%clk 0:01:18]}
37... Nxb3+ {[%clk 0:00:59.1]} 38. Kb1 {[%clk 0:01:17.9]} 38... Rb2# {[%clk
0:00:59.7]} 0-1

[Event "Early-Titled-Tuesday-Blitz-June-18-2024"]
[Site "Chess.com"]
[Date "2024.06.18"]
[Round "8"]
[White "Gareth-Bale11"]
[Black "LastGladiator1"]
[Result "1/2-1/2"]
[WhiteElo "2969"]
[BlackElo "2991"]
[TimeControl "180+1"]
[EndTime "9:28:38 PDT"]
[Termination "Game drawn by agreement"]

1. e4 {[%clk 0:03:00.9]} 1... Nf6 {[%clk 0:03:00.7]} 2. Nc3 {[%clk 0:02:57.9]}
2... e5 {[%clk 0:02:59.9]} 3. Nf3 {[%clk 0:02:57.6]} 3... Nc6 {[%clk 0:03:00]}
4. Bb5 {[%clk 0:02:52.1]} 4... Nd4 {[%clk 0:02:56.2]} 5. Nxd4 {[%clk 0:02:52.1]}
5... exd4 {[%clk 0:02:56.3]} 6. e5 {[%clk 0:02:52.5]} 6... dxc3 {[%clk
0:02:54.1]} 7. exf6 {[%clk 0:02:51.1]} 7... Qxf6 {[%clk 0:02:53.9]} 8. Qe2+
{[%clk 0:02:48.4]} 8... Be7 {[%clk 0:02:51.8]} 9. dxc3 {[%clk 0:02:47.6]} 9...
O-O {[%clk 0:02:50.1]} 10. Be3 {[%clk 0:02:30.8]} 10... c6 {[%clk 0:02:45.8]}
11. Bd3 {[%clk 0:02:26.2]} 11... d5 {[%clk 0:02:44.7]} 12. O-O-O {[%clk
0:02:25.5]} 12... Re8 {[%clk 0:02:35.2]} 13. Bd4 {[%clk 0:02:17.1]} 13... Qh6+
{[%clk 0:02:34.7]} 14. Kb1 {[%clk 0:02:13.5]} 14... Be6 {[%clk 0:02:24.7]} 15.
h4 {[%clk 0:02:07.3]} 15... Bd6 {[%clk 0:02:18.9]} 16. Rde1 {[%clk 0:01:54]}
16... Bd7 {[%clk 0:01:38.5]} 17. Qf3 {[%clk 0:01:48.5]} 17... Qf4 {[%clk
0:01:36.3]} 18. Qxf4 {[%clk 0:01:39.8]} 18... Bxf4 {[%clk 0:01:36.2]} 19. Rxe8+
{[%clk 0:01:25]} 19... Bxe8 {[%clk 0:01:27.1]} 20. Re1 {[%clk 0:01:24.1]} 20...
Bd6 {[%clk 0:01:25.7]} 21. c4 {[%clk 0:01:23.6]} 21... dxc4 {[%clk 0:01:12.9]}
22. Bxc4 {[%clk 0:01:22.4]} 22... Kf8 {[%clk 0:01:13.2]} 23. Rd1 {[%clk
0:01:02.6]} 23... Be7 {[%clk 0:01:12.7]} 24. g3 {[%clk 0:00:57.9]} 24... Rd8
{[%clk 0:01:10.1]} 25. Be2 {[%clk 0:00:56.7]} 25... c5 {[%clk 0:01:03.7]} 26.
Be3 {[%clk 0:00:56.7]} 26... Rxd1+ {[%clk 0:01:03.6]} 27. Bxd1 {[%clk
0:00:57.6]} 27... Bc6 {[%clk 0:01:04]} 28. c3 {[%clk 0:00:54.1]} 28... b6 {[%clk
0:01:03.4]} 29. Kc2 {[%clk 0:00:53.7]} 29... Be4+ {[%clk 0:00:57.9]} 30. Kd2
{[%clk 0:00:53.5]} 30... Ke8 {[%clk 0:00:57.8]} 1/2-1/2

[Event "Early-Titled-Tuesday-Blitz-June-18-2024"]
[Site "Chess.com"]
[Date "2024.06.18"]
[Round "8"]
[White "Schattman"]
[Black "Korchmar_Vasiliy"]
[Result "0-1"]
[WhiteElo "2501"]
[BlackElo "2656"]
[TimeControl "180+1"]
[EndTime "9:28:40 PDT"]
[Termination "Korchmar_Vasiliy won on time"]

1. c4 {[%clk 0:02:28.4]} 1... c5 {[%clk 0:02:58.2]} 2. g3 {[%clk 0:02:24.2]}
2... Nc6 {[%clk 0:02:55.5]} 3. Bg2 {[%clk 0:02:24.4]} 3... Nf6 {[%clk
0:02:56.2]} 4. Nf3 {[%clk 0:02:21.7]} 4... d6 {[%clk 0:02:56.5]} 5. Nc3 {[%clk
0:02:20.8]} 5... Bf5 {[%clk 0:02:56.7]} 6. d3 {[%clk 0:02:20.1]} 6... Qd7 {[%clk
0:02:52.7]} 7. Nh4 {[%clk 0:02:18.3]} 7... Bh3 {[%clk 0:02:52.2]} 8. O-O {[%clk
0:02:10.8]} 8... Bxg2 {[%clk 0:02:50.3]} 9. Kxg2 {[%clk 0:02:06.7]} 9... h5
{[%clk 0:02:47.9]} 10. h3 {[%clk 0:02:04.1]} 10... g6 {[%clk 0:02:46.6]} 11. Bg5
{[%clk 0:01:59.1]} 11... Bg7 {[%clk 0:02:46.6]} 12. Qd2 {[%clk 0:01:59.3]} 12...
Nd4 {[%clk 0:02:42.7]} 13. e4 {[%clk 0:01:41.4]} 13... O-O-O {[%clk 0:02:26.8]}
14. Rab1 {[%clk 0:01:39.6]} 14... Nh7 {[%clk 0:02:26.2]} 15. Be3 {[%clk
0:01:26.2]} 15... g5 {[%clk 0:02:26.1]} 16. Nf5 {[%clk 0:01:18.3]} 16... Nxf5
{[%clk 0:02:23.9]} 17. exf5 {[%clk 0:01:18.3]} 17... Qxf5 {[%clk 0:02:20]} 18.
b4 {[%clk 0:01:17.1]} 18... g4 {[%clk 0:02:10.8]} 19. h4 {[%clk 0:01:11.3]}
19... Nf8 {[%clk 0:02:04.4]} 20. Nd5 {[%clk 0:01:07.3]} 20... Ng6 {[%clk
0:01:57.3]} 21. bxc5 {[%clk 0:01:04.8]} 21... e6 {[%clk 0:01:44.9]} 22. c6
{[%clk 0:00:23.2]} 22... bxc6 {[%clk 0:01:33.8]} 23. Qa5 {[%clk 0:00:14.2]}
23... Kd7 {[%clk 0:01:33.3]} 24. Rb7+ {[%clk 0:00:07.9]} 24... Ke8 {[%clk
0:01:33.7]} 25. Nf4 {[%clk 0:00:03.7]} 25... Qxa5 {[%clk 0:01:33]} 0-1

[Event "Early-Titled-Tuesday-Blitz-June-18-2024"]
[Site "Chess.com"]
[Date "2024.06.18"]
[Round "8"]
[White "tarno17"]
[Black "ValeriyGrinev"]
[Result "0-1"]
[WhiteElo "2173"]
[BlackElo "2560"]
[TimeControl "180+1"]
[EndTime "9:28:44 PDT"]
[Termination "ValeriyGrinev won on time"]

1. e4 {[%clk 0:03:00.9]} 1... c6 {[%clk 0:02:58.1]} 2. d4 {[%clk 0:03:00.6]}
2... d5 {[%clk 0:02:58.3]} 3. Nd2 {[%clk 0:03:00.4]} 3... dxe4 {[%clk
0:02:58.4]} 4. Nxe4 {[%clk 0:03:00.5]} 4... Bf5 {[%clk 0:02:58.7]} 5. Ng3 {[%clk
0:02:57.2]} 5... Bg6 {[%clk 0:02:59]} 6. h4 {[%clk 0:02:57.4]} 6... h6 {[%clk
0:02:59]} 7. h5 {[%clk 0:02:58]} 7... Bh7 {[%clk 0:02:59.3]} 8. f4 {[%clk
0:02:57.8]} 8... Nd7 {[%clk 0:02:58.9]} 9. Nf3 {[%clk 0:02:58.3]} 9... Ngf6
{[%clk 0:02:58.3]} 10. Be3 {[%clk 0:02:57.3]} 10... e6 {[%clk 0:02:58.2]} 11.
Bd3 {[%clk 0:02:57.2]} 11... Bxd3 {[%clk 0:02:57.6]} 12. Qxd3 {[%clk 0:02:58.1]}
12... Nd5 {[%clk 0:02:57.9]} 13. O-O {[%clk 0:02:52.6]} 13... Be7 {[%clk
0:02:52.9]} 14. c4 {[%clk 0:02:49.7]} 14... Nxe3 {[%clk 0:02:52.5]} 15. Qxe3
{[%clk 0:02:49.2]} 15... O-O {[%clk 0:02:52.2]} 16. f5 {[%clk 0:02:37.8]} 16...
exf5 {[%clk 0:02:52.3]} 17. Nxf5 {[%clk 0:02:36.4]} 17... Bf6 {[%clk 0:02:52.6]}
18. Rae1 {[%clk 0:01:56.1]} 18... Qc7 {[%clk 0:02:50.8]} 19. Nh2 {[%clk
0:01:44.3]} 19... Rae8 {[%clk 0:02:48.1]} 20. Qf3 {[%clk 0:01:14]} 20... Qd8
{[%clk 0:02:36.6]} 21. Ng4 {[%clk 0:01:10]} 21... Bg5 {[%clk 0:02:36.4]} 22. Nd6
{[%clk 0:00:32.2]} 22... Rxe1 {[%clk 0:02:33.5]} 23. Rxe1 {[%clk 0:00:33.1]}
23... Nf6 {[%clk 0:02:30.1]} 24. c5 {[%clk 0:00:28.5]} 24... Nxg4 {[%clk
0:02:28.2]} 25. Qxg4 {[%clk 0:00:29.4]} 25... b6 {[%clk 0:02:28]} 26. Qf5 {[%clk
0:00:25.1]} 26... bxc5 {[%clk 0:02:23.3]} 27. dxc5 {[%clk 0:00:26]} 27... Bf6
{[%clk 0:02:21.3]} 28. Re4 {[%clk 0:00:19.8]} 28... Bxb2 {[%clk 0:02:20.2]} 29.
Rg4 {[%clk 0:00:19.6]} 29... Qf6 {[%clk 0:02:19.1]} 30. Qd7 {[%clk 0:00:16.3]}
30... Bd4+ {[%clk 0:02:17.1]} 31. Kh2 {[%clk 0:00:12.1]} 31... Qe5+ {[%clk
0:02:17]} 32. Kh3 {[%clk 0:00:03]} 32... Qxh5+ {[%clk 0:02:16.5]} 33. Rh4 {[%clk
0:00:02.8]} 33... Qxc5 {[%clk 0:02:13.4]} 34. Nf5 {[%clk 0:00:02.6]} 34... Bf6
{[%clk 0:02:11.4]} 35. Rg4 {[%clk 0:00:02.1]} 35... Qc3+ {[%clk 0:02:10]} 36.
Rg3 {[%clk 0:00:02]} 36... Qa1 {[%clk 0:02:07.2]} 37. Nxh6+ {[%clk 0:00:02.1]}
37... Kh7 {[%clk 0:02:07.3]} 38. Nf5 {[%clk 0:00:02.3]} 38... Qh1+ {[%clk
0:02:06.3]} 39. Kg4 {[%clk 0:00:02.4]} 39... Qf1 {[%clk 0:02:01.5]} 40. Qd3
{[%clk 0:00:02.2]} 40... Qxd3 {[%clk 0:01:59.8]} 41. Rxd3 {[%clk 0:00:01.9]}
41... Rd8 {[%clk 0:01:59.9]} 0-1

[Event "Early-Titled-Tuesday-Blitz-June-18-2024"]
[Site "Chess.com"]
[Date "2024.06.18"]
[Round "8"]
[White "KinKaiser"]
[Black "Sprinc1"]
[Result "0-1"]
[WhiteElo "2454"]
[BlackElo "2281"]
[TimeControl "180+1"]
[EndTime "9:28:45 PDT"]
[Termination "Sprinc1 won by resignation"]

1. e4 {[%clk 0:03:00.9]} 1... d5 {[%clk 0:02:59.1]} 2. exd5 {[%clk 0:03:00]}
2... Qxd5 {[%clk 0:03:00]} 3. c3 {[%clk 0:02:53.9]} 3... Nf6 {[%clk 0:02:55.6]}
4. Qb3 {[%clk 0:02:54.1]} 4... Be6 {[%clk 0:02:49.7]} 5. Qxd5 {[%clk 0:02:44.6]}
5... Bxd5 {[%clk 0:02:49.7]} 6. d4 {[%clk 0:02:44.8]} 6... e6 {[%clk 0:02:45.1]}
7. Bf4 {[%clk 0:02:44.4]} 7... c5 {[%clk 0:02:44.3]} 8. Ne2 {[%clk 0:02:42.9]}
8... Nc6 {[%clk 0:02:43.6]} 9. Nd2 {[%clk 0:02:41.6]} 9... cxd4 {[%clk
0:02:43.2]} 10. Nxd4 {[%clk 0:02:41.8]} 10... Nxd4 {[%clk 0:02:40.8]} 11. cxd4
{[%clk 0:02:42.7]} 11... Bb4 {[%clk 0:02:38.8]} 12. Bb5+ {[%clk 0:02:42.2]}
12... Ke7 {[%clk 0:02:38.3]} 13. a3 {[%clk 0:02:42.5]} 13... Bd6 {[%clk
0:02:34.7]} 14. Be3 {[%clk 0:02:42.3]} 14... Rhc8 {[%clk 0:02:30.6]} 15. Bd3
{[%clk 0:02:42.7]} 15... a6 {[%clk 0:02:18.7]} 16. O-O {[%clk 0:02:42.1]} 16...
Ng4 {[%clk 0:02:18.2]} 17. h3 {[%clk 0:02:39.9]} 17... Nxe3 {[%clk 0:02:16.8]}
18. fxe3 {[%clk 0:02:40.8]} 18... f5 {[%clk 0:02:14.8]} 19. Rfc1 {[%clk
0:02:38.7]} 19... g6 {[%clk 0:02:11.5]} 20. Be2 {[%clk 0:02:27.7]} 20... e5
{[%clk 0:02:08]} 21. Bf3 {[%clk 0:02:26.4]} 21... e4 {[%clk 0:02:01.5]} 22. Be2
{[%clk 0:02:25.7]} 22... b5 {[%clk 0:01:58.7]} 23. Bd1 {[%clk 0:02:25.9]} 23...
Ke6 {[%clk 0:01:49.4]} 24. Bb3 {[%clk 0:02:25.5]} 24... a5 {[%clk 0:01:33.6]}
25. Kf2 {[%clk 0:02:23.8]} 25... a4 {[%clk 0:01:32.9]} 26. Bxd5+ {[%clk
0:02:14.9]} 26... Kxd5 {[%clk 0:01:33.8]} 27. Ke2 {[%clk 0:02:15.5]} 27... g5
{[%clk 0:01:30.2]} 28. Rf1 {[%clk 0:01:45.3]} 28... f4 {[%clk 0:01:28]} 29. Rac1
{[%clk 0:01:42.2]} 29... Rxc1 {[%clk 0:01:19.8]} 30. Rxc1 {[%clk 0:01:41.7]}
30... fxe3 {[%clk 0:01:19.8]} 31. Kxe3 {[%clk 0:01:40.5]} 31... Bf4+ {[%clk
0:01:19.9]} 32. Ke2 {[%clk 0:01:40.9]} 32... Kxd4 {[%clk 0:01:19.2]} 33. Rc6
{[%clk 0:01:37.6]} 33... Kd5 {[%clk 0:01:09.7]} 34. Rh6 {[%clk 0:01:35.8]} 34...
Rc8 {[%clk 0:01:08.1]} 35. Kd1 {[%clk 0:01:31.1]} 35... Rc7 {[%clk 0:01:04.8]}
36. Rb6 {[%clk 0:01:26.8]} 36... Kc5 {[%clk 0:01:02.3]} 37. Rf6 {[%clk
0:01:05.9]} 37... Rd7 {[%clk 0:01:01.6]} 38. Rxf4 {[%clk 0:01:05.7]} 38... gxf4
{[%clk 0:01:02.4]} 39. Ke2 {[%clk 0:01:06.3]} 39... Kd4 {[%clk 0:01:00]} 0-1